[Event "Krakow Championship-A 2022"]
[Site "Krakow"]
[Date "2022.06.25"]
[Round "1.1"]
[White "Pechac, Jergus"]
[Black "Liu, Casper"]
[Result "1-0"]
[ECO "D52"]
[WhiteElo "2597"]
[BlackElo "2218"]
[Annotator "TA"]
[PlyCount "127"]
[EventDate "2022.06.25"]
[EventType "swiss"]
[EventCountry "POL"]
[SourceTitle "playchess.com"]
[Source "ChessBase"]
[SourceQuality "1"]
[TimeControl "40/5400+30:1800+30"]

{[%evp 13,127,27,29,3,2,11,5,0,20,-9,-6,-89,-82,-77,-83,-174,-182,-181,-169,-184,58,-154,-145,-201,-194,-305,-303,-258,-264,-250,-174,-176,-197,-167,-155,-168,-138,-200,-135,-142,-132,-140,0,-97,0,-153,-145,-141,-139,-139,-113,-170,0,0,0,0,0,0,0,0,0,0,0,0,0,0,0,0,0,0,0,0,0,-151,-147,-133,-113,-134,0,-159,0,0,0,0,0,0,0,0,0,0,0,0,0,-15,-38,-46,0,0,0,0,375,323,29986,8,29987,29988,29995,29996,29996,29994,29994,29995,29995,29996,29996,29997]} 1. Nf3 {[%emt 0:00:10]} d5 {[%emt 0:00:19]} 2. d4 {[%emt 0:00:07]} Nf6 {[%emt 0:00:04]} 3. c4 {[%emt 0:00:08]} c6 {[%emt 0:00:08]} 4. Nc3 {[%emt 0:00:31]} e6 {[%emt 0:00:01]} 5. Bg5 {[%emt 0:00:15]} Nbd7 {[%emt 0:00:44]} 6. e3 {[%emt 0:00:19]} Qa5 {[%emt 0:01:38]} 7. Nd2 {[%emt 0:00:15]} Bb4 {[%emt 0:03:34]} 8. Rc1 {[%emt 0:00:09] D52: Queen's Gambit Declined: Cambridge Springs Variation.} Ne4 {[%emt 0:00:42]} 9. Ncxe4 {[%emt 0:00:33]} dxe4 {[%emt 0:00:08]} 10. c5 {[%emt 0:00:09] The position is equal.} Qxa2 {[%emt 0:01:36]} 11. Bc4 {[%emt 0:06:42]} (11. Be2 $5 {[%cal Re1g1]}) 11... Qa5 {[%emt 0:01:28] [#]} 12. O-O $146 {[%emt 0:00:11]} ({Predecessor:} 12. Ke2 h6 13. Ra1 Qc7 14. Bf4 e5 15. Bg3 Nxc5 16. dxc5 Bg4+ 17. f3 exf3+ 18. gxf3 {1-0 (58) Vega Gutierrez,S (2375)-Goryachkina,A (2485) Mamaia 2016}) 12... Bxd2 $17 {[%emt 0:02:03]} 13. Ra1 {[%emt 0:00:36]} Qb4 {[%emt 0:00:39][%csl LRb2,LRc4]} 14. Ra4 {[%emt 0:17:01]} (14. Qc2 $17 {might work better.} Nxc5 15. dxc5 Qxc5 16. Bf4) 14... Qxb2 $19 {[%emt 0:00:06]} 15. Ra2 {[%emt 0:00:17]} Qb4 {[%emt 0:11:44]} 16. Be2 {[%emt 0:04:30]} Nxc5 $2 {[%emt 0:13:01]} 17. Rxd2 $2 {[%emt 0:00:12]} (17. dxc5 $14 Qxc5 18. h4) 17... Na4 $17 {[%emt 0:00:19]} 18. Qc2 {[%emt 0:01:13]} (18. d5 $17 {was necessary.} Nc3 19. dxe6 (19. dxc6 $2 O-O $17)) 18... Nc3 $19 {[%emt 0:03:59]} 19. Bg4 {[%emt 0:00:23]} (19. Rc1 {is a better defense.} Nxe2+ 20. Rxe2) 19... h5 {[%emt 0:04:07]} 20. Bd1 {[%emt 0:02:44]} f6 {[%emt 0:02:38]} 21. Bf4 {[%emt 0:00:21]} g5 {[%emt 0:02:28]} 22. Bd6 {[%emt 0:00:36]} Qxd6 {[%emt 0:00:04]} 23. Qxc3 {[%emt 0:00:09]} g4 {[%emt 0:01:19]} 24. Bc2 {[%emt 0:00:29]} Qd5 {[%emt 0:02:18]} 25. Ra1 {[%emt 0:00:28]} (25. Bb3 $17 Qd6 26. Bc2) 25... b5 {[%emt 0:12:59]} 26. Bb3 {[%emt 0:00:33]} Qd6 {[%emt 0:00:04]} 27. Bc2 {[%emt 0:00:17]} Qd5 {[%emt 0:03:02]} 28. Bb3 {[%emt 0:00:08]} Qd6 {[%emt 0:01:09]} ({Black should play} 28... Qd7 $1 29. Bc2 (29. d5 $2 cxd5 30. Qxf6 Rh7 $17) 29... Qd5) 29. Bc2 $1 $17 {[%emt 0:00:09]} b4 {[%emt 0:00:08]} 30. Qb2 {[%emt 0:01:38]} f5 {[%emt 0:00:13]} 31. Ra5 {[%emt 0:00:59][%cal Od4d5]} Bd7 {[%emt 0:02:44]} 32. d5 {[%emt 0:08:59]} (32. Bb3 $17 Rh7 33. Qc1) 32... O-O $2 {[%emt 0:01:08]} (32... Rh6 $19 {[%cal Rc6d5]} 33. Bxe4 exd5 34. Bxd5 Qf6) 33. Bb3 $11 {[%emt 0:00:14] And now dxe6 would win.} cxd5 {[%emt 0:05:06]} 34. Raxd5 {[%emt 0:00:10]} exd5 {[%emt 0:00:06]} 35. Rxd5 {[%emt 0:00:08]} Qf6 {[%emt 0:00:15]} 36. Rxf5+ $1 {[%emt 0:00:40]} Kg7 $1 {[%emt 0:00:05]} 37. Rxf6 {[%emt 0:00:16]} Rxf6 {[%emt 0:00:02]} 38. Qe5 {[%emt 0:00:41]} Bf5 $1 {[%emt 0:05:20]} 39. Qc7+ {[%emt 0:05:53]} Kg6 {[%emt 0:01:13] Hoping for ...Rc8.} 40. Bf7+ {[%emt 0:00:23]} Kh6 $1 ({Resist} 40... Rxf7 41. Qc6+ Kg7 42. Qxa8 $16) 41. Qe7 {[%emt 0:30:19][%csl LRb4,LRf6]} Rb6 {[%emt 0:26:12]} 42. Qe5 {[%emt 0:00:00]} b3 {[%emt 0:00:07][%cal Oa8c8,Bb4b3,Bb3b2][%mdl 32]} 43. f4 $2 {[%emt 0:00:00]} (43. Qf4+ $11 Kg7 44. Qg5+ (44. Qxf5 Rf8 $11) 44... Bg6 45. Bxg6 Rxg6 46. Qe5+ Kh6 47. Qf4+ Kh7 48. Qf7+ Kh6 49. Qf4+ Rg5 50. Qf6+ Rg6 51. Qf4+) 43... b2 $17 {[%emt 0:01:53]} 44. Ba2 {[%emt 0:00:00]} Rf8 {[%emt 0:04:18]} 45. Bb1 {[%emt 0:00:00]} Rff6 {[%emt 0:03:12]} (45... Bg6 $17 {Strongly threatening ...Kh7.} 46. Kf2 Kh7 47. Qe7+ Rf7) 46. Kf2 $2 {[%emt 0:00:00] [#]} ({Better is} 46. Qe7 $11) 46... h4 $2 {[%emt 0:00:05]} (46... Bg6 $1 $17 47. Qa5 Rf7) 47. Qe8 $11 {[%emt 0:00:00]} a5 {[%emt 0:00:44]} 48. Qh8+ {[%emt 0:00:00]} Kg6 {[%emt 0:04:33]} 49. Qg8+ {[%emt 0:00:00]} Kh6 {[%emt 0:00:02]} 50. Qg5+ {[%emt 0:00:00]} Kh7 {[%emt 0:00:04]} 51. Qxh4+ {[%emt 0:00:00]} Kg7 {[%emt 0:00:32]} 52. Qg5+ {[%emt 0:00:00]} Kf8 {[%emt 0:00:56]} 53. Kg3 {[%emt 0:00:00]} a4 {[%emt 0:00:40]} 54. Ba2 {[%emt 0:00:00]} Bg6 {[%emt 0:00:49]} (54... a3 $1 $15) 55. Qc5+ {[%emt 0:04:27]} Kg7 {[%emt 0:00:09]} 56. Qc7+ {[%emt 0:00:13]} Kh6 $2 {[%emt 0:03:33][%mdl 8192] [#]} (56... Kf8 $11) 57. Qd8 $1 $18 {[%emt 0:04:28] Threatens to win with Qh8+. Dancing on a razor blade.} a3 $2 {[%emt 0:02:14]} (57... Bh7 $18 58. Kxg4 Kg7) 58. Qh8+ {[%emt 0:00:06]} Bh7 {[%emt 0:00:09]} 59. Bg8 {[%emt 0:00:11][%csl Gg8][%cal Rh8h7] White mates.} Rb7 {[%emt 0:01:31]} 60. Qxf6+ {[%emt 0:00:16]} Bg6 {[%emt 0:00:03]} 61. Qh8+ {[%emt 0:00:54]} Rh7 {[%emt 0:01:30]} 62. Bxh7 {[%emt 0:00:07]} Bxh7 {[%emt 0:00:07]} 63. Qf6+ {[%emt 0:00:12]} Bg6 {[%emt 0:00:00]} 64. f5 {[%emt 0:00:09] Both players deserved the win here.  Weighted Error Value: White=0.23 (precise) /Black=0.53} 1-0

[Event "Krakow Championship-A 2022"]
[Site "Krakow"]
[Date "2022.06.25"]
[Round "1.2"]
[White "Pniaczek, Marek"]
[Black "Agdestein, Simen"]
[Result "1/2-1/2"]
[ECO "B40"]
[WhiteElo "2298"]
[BlackElo "2559"]
[Annotator "TA"]
[PlyCount "52"]
[EventDate "2022.06.25"]
[EventType "swiss"]
[EventCountry "POL"]
[SourceTitle "playchess.com"]
[Source "ChessBase"]
[SourceQuality "1"]
[TimeControl "40/5400+30:1800+30"]

{[%evp 15,52,41,33,29,36,14,22,34,29,23,40,9,4,2,0,-44,-41,-43,-39,-42,-36,-56,-30,-74,-75,-101,-96,-116,-127,-220,-217,-270,-273,-368,-361,-396,-406,-564,-545]} 1. e4 {[%emt 0:00:03]} c5 {[%emt 0:00:18]} 2. Nf3 {[%emt 0:00:07]} e6 {[%emt 0:00:12]} 3. d4 {[%emt 0:00:05]} cxd4 {[%emt 0:00:03]} 4. Nxd4 {[%emt 0:00:05]} Nf6 {[%emt 0:00:42]} 5. Nc3 {[%emt 0:00:22]} Bb4 {[%emt 0:00:13]} 6. e5 {[%emt 0:01:40]} Nd5 {[%emt 0:00:09]} 7. Bd2 {[%emt 0:03:10][%cal Bc1d2,Bd2b4,Bb4d6][%mdl 32]} Bxc3 {[%emt 0:00:12]} 8. bxc3 {[%emt 0:00:53]} O-O $1 {[%emt 0:00:05] 8...0-0 scores better than 8...Qc7.} 9. c4 {[%emt 0:06:43] B40: Sicilian: 2...e6, Unusual lines.} Ne7 {[%emt 0:00:57]} 10. Bb4 {[%emt 0:08:07]} Nbc6 {[%emt 0:02:38]} 11. Nxc6 {[%emt 0:00:48] The position is equal.} Nxc6 {[%emt 0:00:17]} 12. Bd6 {[%emt 0:03:56]} Nxe5 {[%emt 0:09:46][%cal Of8e8] [#]} 13. Qd2 $146 {[%emt 0:05:32]} (13. c3 $5 {[%cal Rd6e5]} f6 14. Bxf8 Qxf8 15. Be2 $14) ({Predecessor:} 13. Bxf8 Qa5+ 14. Qd2 Nf3+ 15. gxf3 Qe5+ 16. Be2 Qxa1+ 17. Bd1 Qe5+ 18. Be2 Kxf8 19. O-O {½-½ (39) Tancsa,T (2092)-Vegh,E (2213) Budapest 2020}) 13... Qf6 {[%emt 0:05:42][%cal Oe5c4] [#] Strongly threatening ...Nxc4!} 14. Rd1 {[%emt 0:01:32]} Re8 {[%emt 0:02:21]} 15. Be2 {[%emt 0:09:22]} Nc6 {[%emt 0:19:22]} 16. O-O {[%emt 0:07:15][%cal Bh1f1,Bf1f3,Bf3h3][%mdl 32]} b6 {[%emt 0:02:31]} 17. f4 {[%emt 0:00:53]} Ba6 {[%emt 0:02:09][%cal Bc8a6,Ba6c4,Bc4a2][%mdl 32]} 18. Rf3 {[%emt 0:14:22]} Rac8 {[%emt 0:04:34]} 19. c3 {[%emt 0:03:37]} Na5 {[%emt 0:08:48]} 20. Be5 {[%emt 0:01:40]} Qe7 {[%emt 0:01:07]} 21. Rh3 {[%emt 0:08:48]} Bxc4 {[%emt 0:04:00]} ({Worse is} 21... Qc5+ 22. Bd4 Qe7 23. Qd3 $15) 22. Bf3 {[%emt 0:03:25]} (22. Bd6 $17 {might work better.} Qd8 23. Bf3 (23. Qc2 $2 g6 $19)) 22... d5 $19 {[%emt 0:16:53]} 23. Qf2 {[%emt 0:05:39]} Nc6 {[%emt 0:02:00]} 24. Qg3 {[%emt 0:03:52][%csl Ge5][%cal Rg3g7] [#]} Nxe5 {[%emt 0:05:21]} 25. fxe5 {[%emt 0:00:02]} Bxa2 {[%emt 0:01:00]} 26. Rd4 {[%emt 0:00:50]} Rxc3 {[%emt 0:01:43][%mdl 32768] Weighted Error Value: White=0.36/Black=0.02 (flawless) . An unexpected result.} 1/2-1/2

[Event "Krakow Championship-A 2022"]
[Site "Krakow"]
[Date "2022.06.25"]
[Round "1.3"]
[White "Warakomski, Tomasz"]
[Black "Goroshkov, Maksym"]
[Result "1-0"]
[ECO "B07"]
[WhiteElo "2534"]
[BlackElo "2226"]
[Annotator "TA"]
[PlyCount "159"]
[EventDate "2022.06.25"]
[EventType "swiss"]
[EventCountry "POL"]
[SourceTitle "playchess.com"]
[Source "ChessBase"]
[SourceQuality "1"]
[TimeControl "40/5400+30:1800+30"]

{[%evp 13,159,38,31,32,34,40,31,4,6,12,15,0,0,0,0,-9,46,-18,-1,-32,-26,-28,33,0,0,-25,0,-42,-41,-39,-37,-54,-19,-16,-18,-20,-35,-40,-8,-8,-13,-10,0,0,0,0,0,-9,0,-35,-9,-33,-8,-45,66,57,66,43,59,63,92,63,55,63,89,89,93,0,0,0,87,85,76,91,88,75,83,81,74,16,15,0,174,165,202,202,444,437,452,427,395,0,381,415,400,313,313,18,313,313,313,313,313,308,511,484,444,404,1316,1258,1156,1241,1251,1376,1573,815,4618,5197,3445,2445,2926,1988,29979,29980,29980,29981,29981,29982,29982,29983,29983,29984,29984,29984,29985,29986,29986,29987,29987,29988,29988,29989,29990,29991,29991,29992,29992,29993]} 1. e4 {[%emt 0:00:05]} d6 {[%emt 0:00:19]} 2. d4 {[%emt 0:00:09]} Nf6 {[%emt 0:00:06]} 3. Nc3 {[%emt 0:00:05]} g6 {[%emt 0:00:07]} 4. Bc4 {[%emt 0:01:58]} Bg7 {[%emt 0:01:20]} 5. Nf3 {[%emt 0:02:04]} O-O {[%emt 0:01:31]} 6. O-O {[%emt 0:03:16]} c6 {[%emt 0:03:31]} 7. Bb3 {[%emt 0:00:19]} Qc7 {[%emt 0:04:06]} 8. e5 {[%emt 0:07:58] B08: Pirc Defence: Classical System.} dxe5 {[%emt 0:04:36]} 9. Nxe5 {[%emt 0:02:03]} Nbd7 {[%emt 0:07:28]} 10. Bf4 {[%emt 0:01:03][%cal Oe5g6] Strongly threatening Nxg6! White is slightly better.} Nh5 {[%emt 0:07:22]} 11. Nxd7 {[%emt 0:08:01]} Qxd7 {[%emt 0:00:08] [#]} 12. Be5 $146 {[%emt 0:09:04]} ({Predecessor:} 12. Be3 b6 13. Qf3 Bb7 14. Rad1 Rad8 15. Ne4 Qc8 16. Bg5 Qc7 17. Qe3 c5 18. dxc5 {1-0 (50) Laxman,R (2403)-Lalith,B (2593) Sharjah 2017}) 12... Bxe5 {[%emt 0:06:19]} 13. dxe5 {[%emt 0:00:06][%cal Oe5e6]} Qc7 {[%emt 0:00:14]} 14. Re1 {[%emt 0:12:21]} Be6 {[%emt 0:03:38]} ({Black should play} 14... Ng7 $11) 15. Qd2 {[%emt 0:10:10]} (15. Bxe6 $14 fxe6 16. Qg4) 15... Ng7 {[%emt 0:00:59]} (15... Rfd8 {keeps more tension.} 16. Qh6 Ng7 17. Ne4 Nf5) 16. Qf4 {[%emt 0:06:20]} Rad8 {[%emt 0:03:04]} 17. Ne4 {[%emt 0:02:50]} f6 {[%emt 0:06:03]} (17... Qb6 $11) 18. Qg3 {[%emt 0:06:40]} Qxe5 {[%emt 0:04:32]} 19. Bxe6+ {[%emt 0:01:36]} Qxe6 {[%emt 0:02:03]} 20. Nc5 {[%emt 0:03:24]} Qd5 {[%emt 0:01:09]} 21. Qa3 {[%emt 0:00:37]} ({Wrong is} 21. Nxb7 $2 Rd7 22. c4 Qh5 $19) 21... b6 {[%emt 0:03:41]} 22. Nd3 {[%emt 0:00:40]} e5 {[%emt 0:01:29] White must now prevent ...Rf7.} ({Of course not} 22... Nf5 23. Nf4 Qd6 24. Ne6 $11) 23. Qxa7 {[%emt 0:00:06]} b5 {[%emt 0:03:30]} 24. Qc5 {[%emt 0:05:21]} Ne6 {[%emt 0:03:04]} 25. Qxd5 {[%emt 0:00:07]} Rxd5 {[%emt 0:00:13]} 26. a4 {[%emt 0:02:03]} bxa4 {[%emt 0:00:33]} 27. Rxa4 {[%emt 0:00:17]} Rb8 {[%emt 0:05:27]} 28. Rc4 {[%emt 0:01:58]} c5 {[%emt 0:01:11]} 29. b3 {[%emt 0:00:50]} Ra8 {[%emt 0:02:59]} 30. Kf1 {[%emt 0:01:14]} Kf7 {[%emt 0:01:15]} 31. Rc3 {[%emt 0:04:06]} Ra5 {[%emt 0:03:17]} 32. Nb2 {[%emt 0:02:11]} Ra2 {[%emt 0:04:50]} 33. Nc4 {[%emt 0:00:07]} Nd4 {[%emt 0:00:29]} (33... g5 $15) 34. Ne3 $14 {[%emt 0:00:20]} Rd7 {[%emt 0:02:11]} 35. Rxc5 {[%emt 0:00:05]} Ne6 {[%emt 0:00:07]} 36. Rc4 {[%emt 0:03:32]} (36. Rc8 {is interesting.} Rd2 37. b4 Nd4 38. Rc1) 36... Rd2 {[%emt 0:00:07]} 37. Ra4 {[%emt 0:00:56]} Rxa4 {[%emt 0:01:17]} 38. bxa4 {[%emt 0:00:06][%cal Bb3a4,Ba4a5,Ba5a6][%mdl 4128] Endgame KRN-KRN} Nd4 {[%emt 0:00:02]} 39. Rc1 {[%emt 0:01:07]} Ke6 {[%emt 0:01:35]} 40. Ke1 {[%emt 0:00:22]} Re2+ {[%emt 0:00:05]} 41. Kf1 {[%emt 0:30:02]} Rd2 $1 {[%emt 0:30:06]} 42. a5 {[%emt 0:00:00] And now Nc4 would win.} Nc6 {[%emt 0:00:00]} 43. a6 {[%emt 0:00:00]} Rd7 {[%emt 0:00:00]} 44. Rb1 {[%emt 0:00:00]} Ra7 {[%emt 0:00:00]} 45. Rb6 {[%emt 0:00:00]} Kd6 {[%emt 0:00:00]} 46. c4 {[%emt 0:00:00]} (46. Ke2 $16) 46... f5 $11 {[%emt 0:00:00]} 47. Ke2 {[%emt 0:00:00]} f4 $2 {[%emt 0:00:00]} (47... Kc5 $11 {and Black has nothing to worry.} 48. Rb5+ Kd4) 48. Nd5 $18 {[%emt 0:00:00] Threatens to win with Nb4.} Kc5 {[%emt 0:00:00] Inhibits Nb4.} 49. Kd3 {[%emt 0:00:00]} h5 $2 {[%emt 0:00:00]} (49... Ra8 {might work better.} 50. Rb5+ Kd6) 50. h4 {[%emt 0:00:00]} Ra8 {[%emt 0:00:00]} 51. Ke4 {[%emt 0:00:00]} Ra7 {[%emt 0:00:00]} 52. Kd3 {[%emt 0:00:00]} Ra8 {[%emt 0:00:00]} 53. f3 {[%emt 0:00:00]} Ra7 {[%emt 0:00:00]} 54. Kc3 {[%emt 0:00:00]} Ra8 {[%emt 0:00:00]} 55. Rb5+ {[%emt 0:00:28]} Kd6 {[%emt 0:00:00] [#] Loses the game.} 56. Nb4 $1 {[%emt 0:01:00]} ({Much less strong is} 56. Rb6 Kc5 57. Kd3 Ra7 $18) 56... Nxb4 {[%emt 0:00:00]} 57. Kxb4 {[%emt 0:00:04]} Rxa6 {[%emt 0:00:00][%cal Og6g5] KR-KR} 58. Rd5+ {[%emt 0:00:03]} Ke6 $2 {[%emt 0:00:00] [#]} (58... Kc7 {was worth a try.} 59. Rxe5 Kd7) 59. Rd2 $1 {[%emt 0:00:05] c5 is the strong threat.} Rb6+ {[%emt 0:00:00]} 60. Ka5 {[%emt 0:00:31]} Rb1 {[%emt 0:00:00]} (60... Rb3 $142 61. c5 Rc3) 61. c5 {[%emt 0:00:05]} Rc1 {[%emt 0:00:00]} 62. Kb6 {[%emt 0:00:08]} e4 {[%emt 0:00:00]} 63. fxe4 {[%emt 0:00:11]} Ke5 {[%emt 0:00:00]} 64. Rd6 {[%emt 0:02:52]} Rg1 {[%emt 0:00:00]} 65. Rxg6 {[%emt 0:00:26]} f3 {[%emt 0:00:00]} 66. Rg5+ {[%emt 0:00:11]} Kd4 {[%emt 0:00:00]} 67. gxf3 {[%emt 0:00:28]} Rxg5 {[%emt 0:00:00]} 68. hxg5 {[%emt 0:00:09] KP-KP. White mates.} h4 {[%emt 0:00:00]} 69. g6 {[%emt 0:00:34]} h3 {[%emt 0:00:00]} 70. g7 {[%emt 0:00:04]} h2 {[%emt 0:00:00]} 71. g8=Q {[%emt 0:00:24]} h1=Q {[%emt 0:00:00] KQ-KQ} 72. Qd5+ {[%emt 0:00:10]} Ke3 {[%emt 0:00:00]} 73. c6 {[%emt 0:00:25][%cal Bc5c6,Bc6c7][%mdl 32]} Qh6 {[%emt 0:00:00]} 74. e5 {[%emt 0:00:47][%cal Be4e5,Be5e6,Be6e7][%mdl 32]} Ke2 {[%emt 0:00:00]} 75. e6 {[%emt 0:00:26]} Qe3+ {[%emt 0:00:00]} 76. Kb7 {[%emt 0:00:03]} Qa3 {[%emt 0:00:00]} 77. c7 {[%emt 0:00:57]} Qb4+ {[%emt 0:00:00]} 78. Kc6 {[%emt 0:00:06]} Qf8 {[%emt 0:00:00]} 79. Kd7 {[%emt 0:00:28]} Qg7+ {[%emt 0:00:00]} 80. e7 {[%emt 0:00:06] Weighted Error Value: White=0.22 (precise) /Black=0.26 (precise)} 1-0

[Event "Krakow Championship-A 2022"]
[Site "Krakow"]
[Date "2022.06.25"]
[Round "1.4"]
[White "Marszalek, Maciej"]
[Black "Rozentalis, Eduardas"]
[Result "1/2-1/2"]
[ECO "A40"]
[WhiteElo "2290"]
[BlackElo "2523"]
[Annotator "TA"]
[PlyCount "60"]
[EventDate "2022.06.25"]
[EventType "swiss"]
[EventCountry "POL"]
[SourceTitle "playchess.com"]
[Source "ChessBase"]
[SourceQuality "1"]
[TimeControl "40/5400+30:1800+30"]

{[%evp 17,60,30,27,29,20,23,29,28,27,31,37,23,29,33,30,29,44,33,31,32,46,14,18,14,14,22,27,0,20,0,0,0,20,10,22,0,19,14,0,0,0,0,37,3,73]} 1. d4 {[%emt 0:00:19]} Nf6 {[%emt 0:00:18]} 2. c4 {[%emt 0:00:31]} e6 {[%emt 0:00:06]} 3. g3 {[%emt 0:00:18]} Bb4+ {[%emt 0:02:30]} 4. Bd2 {[%emt 0:00:25]} c5 {[%emt 0:00:07][%cal Bc7c5,Bc5b4][%mdl 32]} 5. Bxb4 {[%emt 0:03:44]} cxb4 {[%emt 0:00:11]} 6. Bg2 {[%emt 0:00:40]} O-O {[%emt 0:00:24]} 7. Nf3 {[%emt 0:00:38]} d6 {[%emt 0:01:25]} 8. O-O {[%emt 0:00:35]} a5 {[%emt 0:00:40]} 9. a3 {[%emt 0:00:47]} Na6 {[%emt 0:00:55]} 10. axb4 {[%emt 0:01:52] 10.Qd3 gains popularity. E11: Bogo-Indian.} Nxb4 {[%emt 0:00:15]} 11. Nc3 {[%emt 0:01:09]} Qc7 {[%emt 0:04:18]} 12. b3 {[%emt 0:08:15] White has an edge.} Bd7 {[%emt 0:01:15] [#]} 13. Qb1 $146 {[%emt 0:01:05]} ({Predecessor:} 13. Qd2 Bc6 14. Ne1 e5 15. e3 Qb6 16. Na4 Qa7 17. Nc3 Rfe8 18. d5 Bd7 19. Na2 Nxa2 20. Rxa2 {0-1 (75) Motuz,K (2344)-Gazik,V (2541) Bojnice 2020}) 13... e5 {[%emt 0:04:50]} 14. Rc1 {[%emt 0:02:24]} Rfe8 {[%emt 0:02:36]} 15. dxe5 {[%emt 0:10:01]} dxe5 {[%emt 0:00:07]} 16. Ng5 {[%emt 0:00:27]} h6 {[%emt 0:03:39]} 17. Nge4 {[%emt 0:00:39]} Nxe4 {[%emt 0:02:21]} 18. Bxe4 {[%emt 0:07:10]} Bc6 {[%emt 0:09:06]} 19. Rd1 {[%emt 0:02:17]} Red8 {[%emt 0:04:41]} 20. Rxd8+ {[%emt 0:06:30]} Rxd8 {[%emt 0:00:31]} 21. Bxc6 {[%emt 0:00:16]} bxc6 {[%emt 0:00:19]} 22. Qb2 {[%emt 0:05:35]} f5 {[%emt 0:10:37]} 23. Qa3 {[%emt 0:05:46]} Ra8 {[%emt 0:00:45] [#] Threatens to win with ...Nc2.} 24. Rd1 {[%emt 0:00:18]} e4 {[%emt 0:01:09]} 25. Qc1 {[%emt 0:00:22]} Rd8 {[%emt 0:04:46]} 26. Rd2 {[%emt 0:03:42]} Kh7 {[%emt 0:11:43]} 27. Rxd8 {[%emt 0:05:07]} Qxd8 {[%emt 0:00:11]} 28. Qf4 {[%emt 0:00:49]} Qf6 {[%emt 0:01:41]} 29. Qd2 {[%emt 0:00:08]} Qe5 {[%emt 0:04:15]} (29... Qg5 $5 {[%cal Rg5d2]} 30. Qd1 Qf6 $11) 30. Na4 {[%emt 0:02:45]} Na6 {[%emt 0:12:11] Weighted Error Value: White=0.08 (flawless) /Black=0.07 (flawless)} (30... g5 $11) 1/2-1/2

[Event "Krakow Championship-A 2022"]
[Site "Krakow"]
[Date "2022.06.25"]
[Round "1.5"]
[White "Zwardon, Vojtech"]
[Black "Paszewski, Mateusz"]
[Result "0-1"]
[ECO "A13"]
[WhiteElo "2482"]
[BlackElo "2286"]
[Annotator "TA"]
[PlyCount "84"]
[EventDate "2022.06.25"]
[EventType "swiss"]
[EventCountry "POL"]
[SourceTitle "playchess.com"]
[Source "ChessBase"]
[SourceQuality "1"]
[TimeControl "40/5400+30:1800+30"]

{[%evp 11,84,0,10,-22,-18,-14,-15,-6,-19,-21,-18,-36,-34,-47,-25,-92,-50,-52,0,-27,-51,-41,9,8,59,60,60,44,45,0,8,0,71,88,78,60,91,92,96,78,77,30,26,9,9,0,11,0,0,0,0,0,0,0,0,0,0,0,0,0,0,0,0,0,0,0,0,0,33,0,0,0,0,-834,-652]} 1. c4 {[%emt 0:00:01]} e6 {[%emt 0:00:15]} 2. Nf3 {[%emt 0:00:05]} d5 {[%emt 0:00:05]} 3. e3 {[%emt 0:00:03]} Nf6 {[%emt 0:00:08]} 4. Nc3 {[%emt 0:00:05]} c6 {[%emt 0:01:02]} 5. b3 {[%emt 0:00:17]} Bd6 {[%emt 0:00:14]} 6. Bb2 {[%emt 0:00:13]} O-O {[%emt 0:01:03]} 7. Qc2 {[%emt 0:00:07] A11: English Opening: 1...c6.} e5 $1 {[%emt 0:00:06] 7...e5 scores better than 7...Nbd7.} 8. cxd5 {[%emt 0:07:40]} cxd5 {[%emt 0:02:20]} 9. Nb5 {[%emt 0:00:41] The position is equal.} Nc6 {[%emt 0:00:05]} 10. Nxd6 {[%emt 0:00:17]} Qxd6 {[%emt 0:00:02]} 11. Rc1 {[%emt 0:08:25]} Bg4 {[%emt 0:06:15]} 12. Qc5 {[%emt 0:02:07]} Qe6 {[%emt 0:06:48]} 13. Qb5 {[%emt 0:09:42]} (13. Be2 $11 {remains equal.}) 13... Rab8 {[%emt 0:04:30]} 14. Be2 {[%emt 0:02:01] [#]} Rfc8 $146 {[%emt 0:15:36]} (14... a6 $15 15. Qa4 e4) ({Predecessor:} 14... a6 15. Qa4 d4 16. O-O Rfd8 17. exd4 Bxf3 18. Bxf3 Nxd4 19. Bd1 Nc6 20. Bc3 Nd5 {½-½ (41) Bocharov,D (2602)-Artemiev,V (2570) Khanty-Mansiysk 2013}) 15. h3 {[%emt 0:05:11]} Bh5 {[%emt 0:04:04]} 16. O-O {[%emt 0:04:32]} Qd6 {[%emt 0:06:07]} (16... e4 $15 17. Ng5 Bxe2 18. Qxe2 Qf5) 17. Qa4 {[%emt 0:04:56]} Ne4 {[%emt 0:07:41]} (17... d4 $11) 18. g4 {[%emt 0:15:33]} Bg6 {[%emt 0:02:19]} 19. d3 $36 {[%emt 0:03:19][%cal Bd2d3,Bd3d4][%mdl 2080] White has some pressure.} Nf6 {[%emt 0:11:08]} 20. d4 {[%emt 0:01:54][%cal Rd4e5]} e4 {[%emt 0:04:37]} 21. Ne5 {[%emt 0:00:17]} Nd7 {[%emt 0:01:00]} (21... h5 $11 {keeps the balance.}) 22. Nxc6 $16 {[%emt 0:05:45]} bxc6 {[%emt 0:00:56]} 23. Rc2 {[%emt 0:00:45] Black must now prevent Ba3.} (23. Qxa7 Ra8 24. Qb7 Rab8 $11) 23... h5 {[%emt 0:05:13]} 24. Rfc1 {[%emt 0:00:31][%cal Rc2c6]} (24. gxh5 Bf5 $11) (24. Qxa7 $6 Ra8 25. Qb7 Rab8 $11) 24... Rb6 {[%emt 0:00:26]} 25. Qxa7 {[%emt 0:01:46]} hxg4 {[%emt 0:00:56]} 26. Bxg4 {[%emt 0:02:35]} (26. hxg4 Qe6 27. Ba3 Kh7) (26. Ba3 $16 Qe6 27. hxg4) 26... f5 $11 {[%emt 0:02:22]} 27. Be2 {[%emt 0:00:02]} Be8 {[%emt 0:04:07]} 28. Ba3 {[%emt 0:07:22]} Qh6 {[%emt 0:00:56]} 29. Ba6 {[%emt 0:04:45]} c5 {[%emt 0:06:56]} 30. Bxc8 {[%emt 0:01:14] A strong pair of Bishops.} Qxh3 {[%emt 0:00:07][%cal Rb6g6] [#]} 31. Qxb6 {[%emt 0:00:08]} Nxb6 {[%emt 0:00:01]} 32. Be6+ {[%emt 0:00:01]} (32. Rxc5 $2 Bh5 33. Be6+ Kh7 $19) 32... Bf7 {[%emt 0:03:24]} 33. Bxf7+ {[%emt 0:00:08]} ({Don't blunder} 33. Bxc5 $2 Bxe6 34. Bd6 (34. Bxb6 $2 f4 $19) 34... Qg4+ 35. Kf1 g5 $19) 33... Kxf7 {[%emt 0:00:01]} 34. Bxc5 {[%emt 0:02:55]} f4 {[%emt 0:01:26]} 35. exf4 {[%emt 0:00:11]} (35. Bxb6 {is a self mate.} f3 36. Rc7+ Kg8) 35... Qg4+ {[%emt 0:00:38]} 36. Kf1 {[%emt 0:00:21]} Qh3+ {[%emt 0:00:04]} 37. Ke1 {[%emt 0:00:15]} Nd7 {[%emt 0:00:21]} 38. Bd6 {[%emt 0:03:38]} Qh1+ {[%emt 0:03:08]} 39. Kd2 {[%emt 0:00:58]} Qf3 {[%emt 0:00:03]} 40. Rc7 {[%emt 0:01:23] And now R1c6 would win.} (40. Rd1 $5 {[%cal Rd2c1]}) 40... Qxf2+ {[%emt 0:00:22]} 41. Kc3 {[%emt 0:31:18] [#] Threatens to win with Rc2.} Ke6 {[%emt 0:31:16] The board is on fire.} 42. Kb4 $2 {[%emt 0:05:50][%mdl 8192]} Kxd6 {[%emt 0:00:00] Weighted Error Value: White=0.24 (precise) /Black=0.12 (very precise)} 0-1